bitfinex-derivatives/quotes_ETHF0:USTF0_20250602
["timestamp","ask_amount","ask_price","bid_price","bid_amount"]
[1748861780234,19.28226,2485.6,2485.5,1.53198793]
[1748861780443,20.55846,2485.6,2485.5,1.22570904]
[1748861781934,19.7542,2485.6,2485.3,0.80434]
[1748861782135,2.80611,2485.5,2485.4,1.22582004]
[1748861782939,2.80611,2485.5,2485.4,1.22588091]
[1748861783438,2.80611,2485.5,2485.4,2.03020091]
[1748861783641,2.80611,2485.5,2485.4,1.22588091]
[1748861783938,21.28311,2485.5,2485.4,1.22588091]
[1748861784143,21.28311,2485.5,2485.4,2.03020091]
[1748861784841,21.28311,2485.5,2485.4,1.22588091]
[1748861787537,2.80611,2485.5,2485.4,1.22588091]
[1748861787737,0.80432,2485.4,2485.3,2.00912587]
[1748861787941,0.80432,2485.4,2485.3,3.23535358]
[1748861790048,0.80432,2485.4,2485.3,2.43102358]
[1748861790946,2.80952,2485.4,2485.3,1.22622771]
[1748861791749,0.80435,2485.3,2485.2,8.88736758]
[1748861791943,2.08335,2485.3,2485.2,4.4744]
[1748861792138,2.08335,2485.3,2485.2,5.70096043]
[1748861793942,2.08335,2485.3,2485.2,1.22656043]
[1748861799852,0.80445,2485.0,2484.9,1.20524493]
[1748861800048,0.80445,2485.0,2484.9,2.43169649]
[1748861802155,0.80445,2485.0,2484.9,1.22645156]
[1748861802346,0.80448,2484.9,2484.8,0.00603318]
[1748861802552,24.47718,2484.9,2484.8,0.00603318]
[1748861802752,24.47718,2484.9,2484.8,3.18e-06]
[1748861803052,0.80461,2484.5,2484.4,4.3784]
[1748861803253,4.01241,2484.5,2484.4,4.3784]
[1748861803754,5.38501,2484.5,2484.4,4.3784]
[1748861805951,0.80468,2484.3,2484.2,0.00603318]
[1748861808860,2.07568,2484.3,2484.2,0.00603318]
[1748861812358,2.07568,2484.3,2484.2,0.07673107]
[1748861813363,2.07568,2484.3,2484.2,0.00603318]
[1748861813364,7.07568,2484.3,2484.2,0.00603318]
[1748861813956,7.07568,2484.3,2484.2,3.18e-06]
[1748861821868,25.55168,2484.3,2484.2,3.18e-06]
[1748861822063,2.07568,2484.3,2484.2,3.18e-06]
[1748861822264,20.55168,2484.3,2484.2,3.18e-06]
[1748861822573,20.55168,2484.3,2484.2,0.07070107]
[1748861823371,2.07568,2484.3,2484.2,0.07070107]
[1748861823669,19.28068,2484.3,2484.2,0.07070107]
[1748861823873,0.80468,2484.3,2484.2,0.07070107]
[1748861825371,0.91248,2484.3,2484.2,0.07070107]
[1748861826470,1.55228,2484.3,2484.2,0.07070107]
[1748861826671,1.55228,2484.3,2484.2,3.18e-06]
[1748861829969,0.91248,2484.3,2484.2,3.18e-06]
[1748861838372,19.38648,2484.3,2484.2,3.18e-06]
[1748861839377,0.1078,2484.3,2484.2,6.22567481]
[1748861839568,0.1078,2484.3,2484.2,7.42310621]
[1748861839775,0.1078,2484.3,2484.2,8.71933415]
[1748861840072,0.1078,2484.3,2484.2,4.11903266]
[1748861840073,0.91248,2484.3,2484.2,4.11903266]
[1748861840278,0.91248,2484.3,2484.2,4.11904415]
[1748861840469,0.91248,2484.3,2484.2,2.60803112]
[1748861840880,0.91248,2484.3,2484.2,2.84387106]
[1748861841385,0.91248,2484.3,2484.2,2.53733323]
[1748861841772,0.91248,2484.3,2484.2,1.31180318]
[1748861842484,0.91248,2484.3,2484.2,3.18e-06]
[1748861843183,1.60688,2484.3,2484.2,3.18e-06]
[1748861846071,4.81468,2484.3,2484.2,3.18e-06]
[1748861848480,22.59428,2484.3,2484.2,3.18e-06]
[1748861852691,4.12028,2484.3,2484.2,3.18e-06]
[1748861852886,22.59428,2484.3,2484.2,3.18e-06]
[1748861855586,19.38648,2484.3,2484.2,3.18e-06]
[1748861856980,0.91248,2484.3,2484.2,3.18e-06]
[1748861857282,0.91248,2484.3,2484.2,1.22661988]
[1748861857687,0.91248,2484.3,2484.2,2.58321988]
[1748861858493,0.91248,2484.3,2484.2,2.89008345]
[1748861858692,0.91248,2484.3,2484.2,2.58321988]
[1748861858990,0.91248,2484.3,2484.2,2.88994199]
[1748861859194,0.91248,2484.3,2484.2,2.58309715]
[1748861859383,0.91248,2484.3,2484.2,2.88994161]
[1748861859584,0.91248,2484.3,2484.2,2.88994162]
[1748861859889,0.91248,2484.3,2484.2,5.73909715]
[1748861862581,0.91248,2484.3,2484.2,6.04597706]
[1748861862787,0.91248,2484.3,2484.2,5.73909715]
[1748861863587,0.91248,2484.3,2484.2,5.73883589]
[1748861863884,0.91248,2484.3,2484.2,6.04566076]
[1748861864087,0.91248,2484.3,2484.2,5.73883589]
[1748861864296,0.91248,2484.3,2484.2,4.38223589]
[1748861864492,5.44858,2484.3,2484.2,4.38223589]
[1748861864688,5.44858,2484.3,2484.2,3.15600318]
[1748861865994,5.44858,2484.3,2484.2,3.18e-06]
[1748861872697,0.80484,2483.8,2483.7,2.2216]
[1748861872897,0.80494,2483.5,2483.2,2.8127126]
[1748861873091,0.805,2483.3,2483.2,1.60730776]
[1748861873293,0.80503,2483.2,2483.1,1.20540484]
[1748861873594,0.80507,2483.1,2483.0,0.6464]
[1748861873795,0.80507,2483.1,2483.0,1.87169771]
[1748861873994,0.80507,2483.1,2483.0,6.87169771]
[1748861874200,0.80507,2483.1,2483.0,8.53306715]
[1748861875100,1.40907,2483.1,2483.0,8.53306715]
[1748861875606,1.40907,2483.1,2483.0,3.53238485]
[1748861876299,1.40907,2483.1,2483.0,3.84029324]
[1748861876508,1.40907,2483.1,2483.0,3.53238485]
[1748861877406,1.40907,2483.1,2483.0,3.84029281]
[1748861877605,1.40907,2483.1,2483.0,3.53238485]
[1748861878696,1.40907,2483.1,2483.0,0.30796944]
[1748861879701,2.72177,2483.1,2483.0,0.30796944]
[1748861890313,19.88607,2483.1,2483.0,0.30796944]
[1748861893717,21.21487,2483.1,2483.0,0.30796944]
[1748861899825,21.89147,2483.1,2483.0,0.30796944]
[1748861900634,21.89147,2483.1,2483.0,1.53783758]
[1748861900929,20.56267,2483.1,2483.0,1.53783758]
[1748861901317,19.88607,2483.1,2483.0,1.53783758]
[1748861901522,19.88607,2483.1,2483.0,2.23313758]
[1748861902139,1.40907,2483.1,2483.0,2.23313758]
[1748861902435,19.88607,2483.1,2483.0,2.92950062]
[1748861902929,19.88607,2483.1,2483.0,4.56790569]
[1748861903130,19.88607,2483.1,2483.0,4.56790572]
[1748861903330,19.88607,2483.1,2483.0,4.26000062]
[1748861903527,19.88607,2483.1,2483.0,5.77555857]
[1748861903734,19.88607,2483.1,2483.0,4.56920047]
[1748861904437,19.88607,2483.1,2483.0,4.56921808]
[1748861904734,19.88607,2483.1,2483.0,4.56921822]
[1748861904929,19.88607,2483.1,2483.0,5.77557637]
[1748861905135,19.88607,2483.1,2483.0,5.46635872]
[1748861905332,19.88607,2483.1,2483.0,5.77557643]
[1748861905533,19.88607,2483.1,2483.0,5.77557666]
[1748861905733,19.88607,2483.1,2483.0,5.77558926]
[1748861906232,19.88607,2483.1,2483.0,3.33379998]
[1748861906428,19.88607,2483.1,2483.0,5.77797091]
[1748861906629,19.88607,2483.1,2483.0,5.46874037]
[1748861907233,19.88607,2483.1,2483.0,5.77798154]
[1748861907831,19.88607,2483.1,2483.0,5.77808324]
[1748861908033,19.88607,2483.1,2483.0,5.77808372]
[1748861908436,1.40907,2483.1,2483.0,5.77808372]
[1748861908740,19.88507,2483.1,2483.0,5.77808372]
[1748861908933,19.88507,2483.1,2483.0,5.77808255]
[1748861909138,19.88507,2483.1,2483.0,5.46874037]
[1748861909535,19.88507,2483.1,2483.0,5.77808241]
[1748861910139,19.88507,2483.1,2483.0,5.77807677]
[1748861910340,19.88507,2483.1,2483.0,5.7787177]
[1748861910538,19.88507,2483.1,2483.0,5.4693813]
[1748861910736,19.88507,2483.1,2483.0,5.7787176]
[1748861910939,19.88507,2483.1,2483.0,5.4693813]
[1748861911341,19.88507,2483.1,2483.0,5.77871779]
[1748861911648,19.88507,2483.1,2483.0,5.77871766]
[1748861912138,19.88507,2483.1,2483.0,5.77872221]
[1748861912342,19.88507,2483.1,2483.0,3.06212221]
[1748861912536,19.88507,2483.1,2483.0,3.0621252]
[1748861912736,19.88507,2483.1,2483.0,2.7527813]
[1748861912937,19.88507,2483.1,2483.0,1.85421971]
[1748861913140,19.88507,2483.1,2483.0,1.54487638]
[1748861913332,19.88507,2483.1,2483.0,1.85421706]
[1748861913535,19.88507,2483.1,2483.0,3.06212198]
[1748861913838,19.88507,2483.1,2483.0,2.7527813]
[1748861914031,19.88507,2483.1,2483.0,3.06213324]
[1748861914234,19.88507,2483.1,2483.0,0.30796944]
[1748861914433,19.88507,2483.1,2483.0,2.75289003]
[1748861914740,19.88507,2483.1,2483.0,3.06223961]
[1748861914942,19.88507,2483.1,2483.0,3.06223858]
[1748861915133,19.88507,2483.1,2483.0,3.06223861]
[1748861915842,19.88507,2483.1,2483.0,3.06224202]
[1748861916241,19.88507,2483.1,2483.0,3.06224188]
[1748861916439,19.88507,2483.1,2483.0,2.75289003]
[1748861918343,19.88507,2483.1,2483.0,0.30796944]
[1748861918539,19.88507,2483.1,2483.0,2.75293128]
[1748861920147,19.88507,2483.1,2483.0,3.06228216]
[1748861920345,19.88507,2483.1,2483.0,2.75293128]
[1748861921045,19.88307,2483.1,2483.0,2.75293128]
[1748861921440,19.88307,2483.1,2483.0,3.06228194]
[1748861921642,19.88307,2483.1,2483.0,3.06228543]
[1748861921950,19.88307,2483.1,2483.0,3.06228517]
[1748861922142,19.88307,2483.1,2483.0,3.0622862]
[1748861922346,19.88307,2483.1,2483.0,0.30796944]
[1748861922541,19.88307,2483.1,2483.0,2.75294951]
[1748861922742,19.88307,2483.1,2483.0,3.06230467]
[1748861923052,19.88307,2483.1,2483.0,2.75294951]
[1748861923245,19.88307,2483.1,2483.0,3.06230461]
[1748861923441,0.604,2483.1,2483.0,3.86740835]
[1748861923645,19.88207,2483.1,2483.0,2.75294951]
[1748861924048,19.88207,2483.1,2483.0,2.90746006]
[1748861924349,19.88207,2483.1,2483.0,4.11531531]
[1748861924655,19.88207,2483.1,2483.0,4.424663]
[1748861925448,19.88207,2483.1,2483.0,4.11531531]
[1748861925755,19.88207,2483.1,2483.0,2.75281531]
[1748861925949,19.88207,2483.1,2483.0,6.37975679]
[1748861926148,19.88207,2483.1,2483.0,6.37975889]
[1748861926352,19.88207,2483.1,2483.0,3.93491302]
[1748861926552,19.88207,2483.1,2483.0,5.17183294]
[1748861926746,19.88207,2483.1,2483.0,6.37975435]
[1748861927250,19.88207,2483.1,2483.0,6.07041077]
[1748861927555,19.88207,2483.1,2483.0,4.86248936]
[1748861927747,19.88207,2483.1,2483.0,5.17183813]
[1748861927955,19.88207,2483.1,2483.0,6.37975929]
[1748861928144,19.88207,2483.1,2483.0,6.37975943]
[1748861928549,19.88207,2483.1,2483.0,6.37978123]
[1748861928951,19.88207,2483.1,2483.0,5.17185982]
[1748861929150,19.88207,2483.1,2483.0,6.37978123]
[1748861929444,19.88207,2483.1,2483.0,6.37978181]
[1748861929653,19.88207,2483.1,2483.0,5.17186189]
[1748861929847,19.88207,2483.1,2483.0,5.17186198]
[1748861930053,19.88207,2483.1,2483.0,6.37978338]
[1748861930352,19.88207,2483.1,2483.0,6.07041077]
[1748861930554,19.88207,2483.1,2483.0,6.37978144]
[1748861931656,19.88207,2483.1,2483.0,6.07041077]
[1748861932047,19.88207,2483.1,2483.0,6.379782]
[1748861932343,19.88207,2483.1,2483.0,6.37978037]
[1748861932953,19.88207,2483.1,2483.0,6.07041077]
[1748861933153,19.88207,2483.1,2483.0,6.37977999]
[1748861933351,19.88007,2483.1,2483.0,6.37977979]
[1748861933559,19.88007,2483.1,2483.0,6.07041077]
[1748861934554,19.88007,2483.1,2483.0,6.07064924]
[1748861935761,19.88007,2483.1,2483.0,6.37998827]
[1748861935953,19.88007,2483.1,2483.0,6.07064924]
[1748861938352,19.074,2483.1,2483.0,6.87574924]
[1748861938561,19.87907,2483.1,2483.0,6.93289666]
[1748861939046,19.87907,2483.1,2483.0,6.12779666]
[1748861939249,19.87907,2483.1,2483.0,7.33566741]
[1748861939562,19.074,2483.1,2483.0,6.93289666]
[1748861939750,19.87907,2483.1,2483.0,6.93289666]
[1748861940155,1.40907,2483.1,2483.0,6.93289666]
[1748861940356,19.87807,2483.1,2483.0,6.93289666]
[1748861940861,19.87807,2483.1,2483.0,6.12779666]
[1748861941361,19.87807,2483.1,2483.0,7.33559044]
[1748861942257,19.87807,2483.1,2483.0,7.6449088]
[1748861942653,19.87807,2483.1,2483.0,7.64493365]
[1748861942853,19.87807,2483.1,2483.0,7.24217232]
[1748861943456,0.604,2483.1,2483.0,7.24216595]
[1748861943659,3.2078,2483.7,2483.6,0.8049]
[1748861943857,0.6733,2484.0,2483.6,7.57135375]
[1748861944050,0.80486,2483.8,2483.7,1.271]
[1748861944256,0.80486,2483.8,2483.7,4.39719919]
[1748861944453,0.80486,2483.8,2483.7,5.32514139]
[1748861944757,0.80486,2483.8,2483.7,5.38603522]
[1748861945056,18.468,2483.8,2483.7,3.86800497]
[1748861945258,18.468,2483.8,2483.7,5.87867954]
[1748861945560,19.27284,2483.8,2483.7,4.98091881]
[1748861945760,19.27284,2483.8,2483.7,4.67287497]
[1748861945961,19.27284,2483.8,2483.7,3.86800497]
[1748861947162,19.26984,2483.8,2483.7,6.76720497]
[1748861947551,19.26984,2483.8,2483.7,7.57207497]
[1748861948151,18.465,2483.8,2483.7,7.57207497]
[1748861948961,18.465,2483.8,2483.7,7.88970539]
[1748861949665,0.1747,2483.9,2483.8,0.80484]
[1748861949864,18.6387,2483.9,2483.8,0.80484]
[1748861950763,19.44352,2483.9,2483.8,0.80484]
[1748861951460,0.80484,2483.8,2483.7,6.33696]
[1748861951763,0.80484,2483.8,2483.7,7.58022581]
[1748861952467,19.44353,2483.9,2483.7,7.58022581]
[1748861952666,19.44353,2483.9,2483.7,6.33696]
[1748861952968,18.6387,2483.9,2483.7,6.33696]
[1748861953167,0.80484,2483.8,2483.7,6.33696]
[1748861953369,20.80673,2483.9,2483.7,7.58001684]
[1748861953572,20.80673,2483.9,2483.7,6.33696]
[1748861954169,20.80673,2483.9,2483.8,0.80484]
[1748861954467,20.0019,2483.9,2483.7,5.5321]
[1748861954670,20.80672,2483.9,2483.8,0.80484]
[1748861954966,0.80484,2483.8,2483.7,5.5321]
[1748861955268,0.80484,2483.8,2483.7,5.4130611]
[1748861955862,0.80484,2483.8,2483.7,6.2179311]
[1748861956265,0.80484,2483.8,2483.7,4.1420611]
[1748861956465,2.08714,2483.8,2483.7,4.1420611]
[1748861956678,2.08714,2483.8,2483.7,2.8992]
[1748861957480,2.77434,2483.8,2483.7,2.8992]
[1748861958272,21.23434,2483.8,2483.7,2.8992]
[1748861958667,20.4295,2483.8,2483.7,4.95897554]
[1748861958971,20.4295,2483.8,2483.7,2.05977554]
[1748861958972,1.9695,2483.8,2483.7,2.05977554]
[1748861959273,20.4295,2483.8,2483.7,2.05977554]
[1748861959575,21.23434,2483.8,2483.7,1.25490554]
[1748861959767,19.26484,2483.8,2483.7,1.25490554]
[1748861960172,0.80484,2483.8,2483.7,2.05977554]
[1748861960471,19.26384,2483.8,2483.7,1.25490554]
[1748861961069,0.80487,2483.7,2483.6,5.05688]
[1748861961270,0.80487,2483.7,2483.6,6.62062652]
[1748861961571,1.48227,2483.7,2483.6,6.31205605]
[1748861961769,1.48227,2483.7,2483.6,6.62092041]
[1748861962772,1.48227,2483.7,2483.6,6.62098765]
[1748861962974,1.48227,2483.7,2483.6,6.62098771]
[1748861963271,1.48227,2483.7,2483.6,6.31205605]
[1748861964071,1.48227,2483.7,2483.6,6.62098748]
[1748861964271,1.48227,2483.7,2483.6,5.50717605]
[1748861964971,1.48227,2483.7,2483.6,5.50789693]
[1748861965173,1.48227,2483.7,2483.6,5.81774117]
[1748861965374,1.48227,2483.7,2483.6,5.50789693]
[1748861965575,1.48227,2483.7,2483.6,5.81774128]
[1748861965875,1.48227,2483.7,2483.6,6.31279693]
[1748861966471,1.48227,2483.7,2483.6,5.50789693]
[1748861966669,2.75327,2483.7,2483.6,5.50789693]
[1748861966868,2.75327,2483.7,2483.6,5.81775876]
[1748861967067,2.75327,2483.7,2483.6,5.50789693]
[1748861967772,2.75327,2483.7,2483.6,6.31279693]
[1748861968077,2.75327,2483.7,2483.6,5.50789693]
[1748861968876,2.75327,2483.7,2483.6,6.31279693]
[1748861969078,2.75327,2483.7,2483.6,6.31435365]
[1748861969671,21.21027,2483.7,2483.6,6.62421035]
[1748861969872,2.75327,2483.7,2483.6,6.62421035]
[1748861970071,21.21027,2483.7,2483.6,6.31435365]
[1748861970272,21.21027,2483.7,2483.6,6.62405578]
[1748861970469,21.21027,2483.7,2483.6,6.31435365]
[1748861971068,21.21027,2483.7,2483.6,5.81915424]
[1748861971685,21.21027,2483.7,2483.6,5.81911887]
[1748861971890,21.21027,2483.7,2483.6,5.50945365]
[1748861972999,21.21027,2483.7,2483.6,4.5616668]
[1748861973296,21.21027,2483.7,2483.6,6.13007239]
[1748861973991,21.21027,2483.7,2483.6,6.13002649]
[1748861974196,21.21027,2483.7,2483.6,7.33625022]
[1748861974498,21.21027,2483.7,2483.6,6.1300255]
[1748861975292,21.21027,2483.7,2483.6,6.12999738]
[1748861975495,21.21027,2483.7,2483.6,6.12998834]
[1748861975699,21.21027,2483.7,2483.6,5.82040565]
[1748861975999,21.21027,2483.7,2483.6,6.12998827]
[1748861976201,21.21027,2483.7,2483.6,6.1299885]
[1748861976501,21.38507,2483.7,2483.6,6.1299889]
[1748861976696,1.65707,2483.7,2483.6,6.1299889]
[1748861976904,20.11207,2483.7,2483.6,8.72161263]
[1748861977104,20.11207,2483.7,2483.6,8.72284648]
[1748861977298,20.11207,2483.7,2483.6,8.41326323]
[1748861977603,20.11207,2483.7,2483.6,8.72285107]
[1748861977802,20.11207,2483.7,2483.6,8.72284933]
[1748861977997,20.11207,2483.7,2483.6,8.41326323]
[1748861978702,20.11207,2483.7,2483.6,8.72284956]
[1748861979298,20.11207,2483.7,2483.6,8.72284839]
[1748861979499,20.11207,2483.7,2483.6,8.72285736]
[1748861979702,20.11207,2483.7,2483.6,8.41326323]
[1748861980897,1.65707,2483.7,2483.6,8.41326323]
[1748861981104,20.11107,2483.7,2483.6,8.41326323]
[1748861982305,20.11107,2483.7,2483.6,8.72288157]
[1748861983401,20.11107,2483.7,2483.6,9.03249883]
[1748861984107,20.11107,2483.7,2483.6,9.03251658]
[1748861984406,20.11107,2483.7,2483.6,7.82569188]
[1748861984608,20.11107,2483.7,2483.6,7.82569209]
[1748861984907,20.11107,2483.7,2483.6,7.82570379]
[1748861985102,20.11107,2483.7,2483.6,7.82582482]
[1748861985302,20.11107,2483.7,2483.6,7.82582476]
[1748861985605,20.11107,2483.7,2483.6,7.51617791]
[1748861985806,20.11107,2483.7,2483.6,7.82585659]
[1748861986007,0.1748,2483.7,2483.6,8.63075659]
[1748861986196,18.6278,2483.7,2483.6,8.32107791]
[1748861986404,0.1748,2483.7,2483.6,9.52802508]
[1748861986597,0.1748,2483.7,2483.6,9.92543667]
[1748861986802,19.43267,2483.7,2483.6,9.92543667]
[1748861987109,19.43267,2483.7,2483.6,9.43016441]
[1748861987313,19.43267,2483.7,2483.6,9.5008623]
[1748861987909,19.43267,2483.7,2483.6,10.3057623]
[1748861988109,19.43267,2483.7,2483.6,9.99613456]
[1748861988301,19.43267,2483.7,2483.6,9.92543667]
[1748861988501,19.43267,2483.7,2483.6,10.23507968]
[1748861988703,19.43267,2483.7,2483.6,10.23507948]
[1748861988914,19.43267,2483.7,2483.6,10.23504606]
[1748861989410,19.43267,2483.7,2483.6,8.6306873]
[1748861989609,19.43267,2483.7,2483.6,10.23504735]
[1748861989809,19.43267,2483.7,2483.6,9.92543667]
[1748861990013,19.43267,2483.7,2483.6,10.23504626]
[1748861990409,19.43267,2483.7,2483.6,10.23504635]
[1748861990707,19.43267,2483.7,2483.6,9.92543667]
[1748861990909,19.43267,2483.7,2483.6,8.32107791]
[1748861991109,19.43267,2483.7,2483.6,9.92543667]
[1748861991510,19.43267,2483.7,2483.6,10.23502792]
[1748861991711,19.43267,2483.7,2483.6,8.63066916]
[1748861991913,19.43267,2483.7,2483.6,8.32107791]
[1748861992115,19.43267,2483.7,2483.6,8.6306731]
[1748861992314,19.43267,2483.7,2483.6,8.63067265]
[1748861992514,19.43267,2483.7,2483.6,8.63068186]
[1748861993012,0.1748,2483.7,2483.6,8.32107791]
[1748861993214,0.97967,2483.7,2483.6,8.63346126]
[1748861993417,0.97967,2483.7,2483.6,7.82856126]
[1748861993713,0.97967,2483.7,2483.6,7.6500573]
[1748861993908,3.01957,2483.7,2483.6,6.44315886]
[1748861994308,3.01957,2483.7,2483.6,6.44316442]
[1748861994509,3.01957,2483.7,2483.6,6.7527596]
[1748861994817,3.01957,2483.7,2483.6,6.44316442]
[1748861995016,3.01957,2483.7,2483.6,2.50074915]
[1748861995319,3.01957,2483.7,2483.6,2.50028732]
[1748861995608,3.01957,2483.7,2483.6,2.19070259]
[1748861995814,3.01957,2483.7,2483.6,2.50028574]
[1748861996016,3.01957,2483.7,2483.6,2.50028538]
[1748861996212,3.01957,2483.7,2483.6,2.19070259]
[1748861996812,3.01957,2483.7,2483.6,2.5002853]
[1748861997717,3.01957,2483.7,2483.6,2.19070259]
[1748861997926,3.01957,2483.7,2483.6,2.49961464]
[1748861998118,3.01957,2483.7,2483.6,2.19070259]
[1748862000315,2.2147,2483.7,2483.6,2.99560259]
[1748862000521,0.1748,2483.7,2483.6,4.2025695]
[1748862000716,0.1748,2483.7,2483.6,14.71086097]
[1748862000916,0.1748,2483.7,2483.6,14.71085549]
[1748862001120,0.1748,2483.7,2483.6,50.51083093]
[1748862001423,0.1748,2483.7,2483.6,47.06485924]
[1748862001616,0.1748,2483.7,2483.6,47.37372491]
[1748862001923,0.1748,2483.7,2483.6,11.57372372]
[1748862002223,0.97967,2483.7,2483.6,2.26140048]
[1748862002423,0.97967,2483.7,2483.6,2.49957666]
[1748862002622,0.97967,2483.7,2483.6,2.49957688]
[1748862002824,0.97967,2483.7,2483.6,2.49957672]
[1748862003022,0.97967,2483.7,2483.6,2.49957707]
[1748862003521,0.97967,2483.7,2483.6,1.23775339]
[1748862003723,0.97967,2483.7,2483.6,2.18174852]
[1748862003922,0.97967,2483.7,2483.6,2.49063963]
[1748862004113,0.97967,2483.7,2483.6,3.69745615]
[1748862004317,0.97967,2483.7,2483.6,3.38856901]
[1748862004824,0.97967,2483.7,2483.6,2.18175357]
[1748862005013,0.97967,2483.7,2483.6,2.49064762]
[1748862005218,0.97967,2483.7,2483.6,2.18175357]
[1748862006118,0.97967,2483.7,2483.6,2.49065033]
[1748862006419,0.97967,2483.7,2483.6,2.18175357]
[1748862007622,0.97967,2483.7,2483.6,0.92887891]
[1748862008332,0.97967,2483.7,2483.6,2.18101941]
[1748862009531,0.97967,2483.7,2483.6,0.92887891]
[1748862015233,5.97967,2483.7,2483.6,0.92887891]
[1748862015421,24.42467,2483.7,2483.6,0.92887891]
[1748862016634,24.42467,2483.7,2483.6,0.32487891]
[1748862017226,0.97967,2483.7,2483.6,0.32487891]
[1748862017424,19.42467,2483.7,2483.6,0.32487891]
[1748862017629,0.97967,2483.7,2483.6,0.32487891]
[1748862017837,0.1748,2483.7,2483.6,2.44946225]
[1748862018544,0.97967,2483.7,2483.6,2.85072878]
[1748862018837,0.97967,2483.7,2483.6,4.10703089]
[1748862019437,0.97967,2483.7,2483.6,4.1065063]
[1748862023541,0.97967,2483.7,2483.6,4.10650479]
[1748862024638,19.42267,2483.7,2483.6,4.10650479]
[1748862027929,0.97967,2483.7,2483.6,4.10650479]
[1748862028130,0.1748,2483.7,2483.6,8.11920479]
[1748862028335,0.80475,2484.1,2484.0,0.80474]
[1748862028641,0.80475,2484.1,2484.0,2.05363971]
[1748862029033,0.80475,2484.1,2484.0,3.35073971]
[1748862029239,0.80475,2484.1,2484.0,2.54599971]
[1748862031945,0.80475,2484.1,2484.0,5.79879971]
[1748862033247,0.80475,2484.1,2484.0,4.50169971]
[1748862033738,2.76465,2484.1,2484.0,4.50169971]
[1748862033938,2.76465,2484.1,2484.0,3.2528]
[1748862035452,2.76465,2484.1,2484.0,3.078]
[1748862036544,0.80487,2483.7,2483.6,0.32487891]
[1748862036742,0.80487,2483.7,2483.6,1.57261284]
[1748862037652,0.80487,2483.7,2483.6,0.32487891]
[1748862037951,2.84157,2483.7,2483.6,0.32487891]
[1748862039744,6.04937,2483.7,2483.6,0.32487891]
[1748862042259,0.80503,2483.2,2483.1,4.7672]
[1748862042449,19.24303,2483.2,2483.1,4.7672]
[1748862042847,0.8051,2483.0,2482.9,0.6797]
[1748862043046,0.8051,2483.0,2482.9,4.50431796]
[1748862044048,0.8051,2483.0,2482.9,3.82461796]
[1748862046046,19.2441,2483.0,2482.9,1.24781796]
[1748862046254,18.439,2483.0,2482.9,2.05293796]
[1748862046442,0.00603318,2483.2,2483.1,0.80507]
[1748862046644,0.00603318,2483.2,2483.1,4.01287]
[1748862046855,0.00603318,2483.2,2483.1,10.2176287]
[1748862047149,0.00603318,2483.2,2483.1,15.78054096]
[1748862047353,0.00603318,2483.2,2483.1,14.57578226]
[1748862048953,3.2078,2483.9,2483.6,0.80489]
[1748862049150,0.80484,2483.8,2483.7,4.00349008]
[1748862050249,0.80494,2483.5,2483.4,8.34807531]
[1748862050459,0.80494,2483.5,2483.4,8.4957]
[1748862050649,0.80494,2483.5,2483.4,10.96041603]
[1748862051558,0.80494,2483.5,2483.4,9.04421603]
[1748862051949,0.80491,2483.6,2483.4,12.29717603]
[1748862052148,0.80491,2483.6,2483.5,1.26138508]
[1748862052351,0.8049,2483.7,2483.5,2.55298508]
[1748862052545,0.8049,2483.7,2483.6,1.26138508]
[1748862054050,3.2078,2483.9,2483.6,1.26138508]
[1748862054252,18.438,2483.8,2483.7,3.37793508]
[1748862054455,19.24285,2483.8,2483.7,2.57302085]
[1748862058562,19.24285,2483.8,2483.7,2.57323261]
[1748862059459,18.437,2483.8,2483.7,2.57323261]
[1748862059662,19.24185,2483.8,2483.7,2.57323261]
[1748862060061,0.80485,2483.8,2483.7,2.57323261]
[1748862060257,19.24185,2483.8,2483.7,2.57323261]
[1748862060458,19.24185,2483.8,2483.7,1.26153261]
[1748862061058,0.80495,2483.5,2483.4,5.00235705]
[1748862061263,0.80495,2483.5,2483.4,3.70975213]
[1748862061568,18.437,2483.5,2483.4,4.51478594]
[1748862061868,19.24195,2483.5,2483.4,5.01510594]
[1748862062167,0.80495,2483.5,2483.4,5.01510594]
[1748862062373,19.24095,2483.5,2483.4,5.01510594]
[1748862063957,19.24095,2483.5,2483.4,2.56710594]
[1748862065064,0.80491,2483.6,2483.5,0.80495]
[1748862065272,19.24091,2483.6,2483.5,2.54524827]
[1748862065455,19.24091,2483.6,2483.5,3.24204827]
[1748862069061,19.24091,2483.6,2483.5,3.24210895]
[1748862069265,19.24091,2483.6,2483.5,5.25149604]
[1748862069966,3.8961,2483.9,2483.5,4.44654604]
[1748862070159,0.00603318,2484.0,2483.7,5.21997]
[1748862070361,0.00603318,2484.0,2483.9,2.00925709]
[1748862070674,0.00603318,2484.0,2483.9,45.59530668]
[1748862071167,0.00603318,2484.0,2483.9,50.59530668]
[1748862071471,0.81082318,2484.0,2483.9,45.59530668]
[1748862071671,0.81082318,2484.0,2483.9,43.18042904]
[1748862071867,0.81082318,2484.0,2483.9,1.26030904]
[1748862072566,2.11842318,2484.0,2483.9,1.26030904]
[1748862072771,0.80482,2483.9,2483.8,40.85604]
[1748862073065,0.80482,2483.9,2483.8,5.51009311]
[1748862073470,0.80482,2483.9,2483.8,6.31494311]
[1748862073970,2.11844318,2484.0,2483.8,6.31494311]
[1748862074165,2.11844318,2484.0,2483.9,1.25889311]
[1748862075265,20.55242318,2484.0,2483.9,1.25889311]
[1748862075465,20.55242318,2484.0,2483.9,2.06371311]
[1748862075671,20.55242318,2484.0,2483.8,4.2512]
[1748862075672,0.80482,2483.9,2483.8,4.2512]
[1748862075965,0.80505,2483.2,2483.0,3.61301112]
[1748862076172,20.4437,2483.1,2482.9,1.20346478]
[1748862076678,20.4437,2483.1,2482.9,2.4085671]
[1748862076873,0.80511,2483.0,2482.9,1.20510232]
[1748862077058,2.17181,2483.0,2482.9,1.20510232]
[1748862077262,2.17181,2483.0,2482.8,4.4189355]
[1748862077666,1.3667,2483.0,2482.8,4.4189355]
[1748862078873,1.3667,2483.0,2482.8,3.21383318]
[1748862079070,1.3667,2483.0,2482.8,0.00603318]
[1748862079071,0.80514,2482.9,2482.8,0.00603318]
[1748862079479,4.01294,2482.9,2482.8,0.00603318]
[1748862082771,22.44894,2482.9,2482.8,0.00603318]